fUSD/lending_fUSD_20250208
["ID","MTS","AMOUNT","RATE_DAILY","PERIOD"]
[352355260,1739055045393,-500.0,0.00010951,2]
[352355262,1739055045403,-858.71,0.00010951,2]
[352355264,1739055045412,-535.52,0.00010951,2]
[352355266,1739055045421,-500.0,0.00010951,2]
[352355268,1739055045431,-500.0,0.00010951,2]
[352355270,1739055045440,-500.0,0.00010951,2]
[352355271,1739055045450,-500.0,0.00010951,2]
[352355272,1739055045459,-500.0,0.00010951,2]
[352355273,1739055045470,-500.0,0.00010951,2]
[352355274,1739055045480,-516.44,0.00010951,2]
[352355276,1739055045489,-795.81,0.00010951,2]
[352355278,1739055045498,-1303.39,0.00010951,2]
[352355280,1739055045508,-500.0,0.00010951,2]
[352355283,1739055045518,-592.52,0.00010951,2]
[352355285,1739055045527,-500.0,0.00010951,2]
[352355287,1739055045537,-500.0,0.00010951,2]
[352355289,1739055045547,-500.0,0.00010951,2]
[352355291,1739055045556,-500.0,0.00010951,2]
[352355293,1739055045565,-500.0,0.00010951,2]
[352355295,1739055045575,-500.0,0.00010951,2]
[352355297,1739055045584,-239.56,0.00010951,2]
[352355299,1739055045594,-500.0,0.00010952,2]
[352355301,1739055045602,-500.0,0.00010952,2]
[352355303,1739055045612,-500.0,0.00010952,2]
[352355305,1739055045621,-500.0,0.00010952,2]
[352355307,1739055045631,-500.0,0.00010952,2]
[352355309,1739055045640,-500.0,0.00010952,2]
[352355311,1739055045650,-500.0,0.00010952,2]
[352355313,1739055045659,-500.0,0.00010952,2]
[352355315,1739055045668,-500.0,0.00010952,2]
[352355317,1739055045677,-500.0,0.00010952,2]
[352355319,1739055045687,-500.0,0.00010952,2]
[352355321,1739055045696,-575.91,0.00010952,2]
[352355323,1739055045705,-500.0,0.00010952,2]
[352355325,1739055045714,-500.0,0.00010952,2]
[352355327,1739055045723,-500.0,0.00010952,2]
[352355329,1739055045733,-500.0,0.00010952,2]
[352355331,1739055045742,-500.0,0.00010952,2]
[352355333,1739055045751,-500.0,0.00010952,2]
[352355335,1739055045760,-532.45,0.00010952,2]
[352355337,1739055045769,-500.0,0.00010952,2]
[352355339,1739055045779,-500.0,0.00010952,2]
[352355341,1739055045789,-573.92,0.00010952,2]
[352355343,1739055045798,-500.0,0.00010952,2]
[352355345,1739055045817,-500.0,0.00010952,2]
[352355347,1739055045826,-500.0,0.00010952,2]
[352355349,1739055045836,-500.0,0.00010952,2]
[352355351,1739055045848,-538.35,0.00010952,2]
[352355353,1739055045857,-500.0,0.00010952,2]
[352355355,1739055045866,-500.0,0.00010952,2]
[352355357,1739055045876,-500.0,0.00010952,2]
[352355359,1739055045885,-500.0,0.00010952,2]
[352355362,1739055045895,-152.929857,0.00010952,2]
[352355365,1739055045904,-152.929857,0.00010952,2]
[352355367,1739055045913,-500.0,0.00010952,2]
[352355369,1739055045923,-500.0,0.00010952,2]
[352355371,1739055045932,-500.0,0.00010952,2]
[352355373,1739055045942,-500.0,0.00010952,2]
[352355375,1739055045951,-500.0,0.00010952,2]
[352355378,1739055045961,-500.0,0.00010952,2]
[352355381,1739055045971,-641.05,0.00010952,2]
[352355383,1739055045980,-930.62,0.00010952,2]
[352355385,1739055045990,-500.0,0.00010952,2]
[352355387,1739055045999,-500.0,0.00010952,2]
[352355389,1739055046009,-620.94,0.00010952,2]
[352355391,1739055046018,-519.32,0.00010952,2]
[352355393,1739055046028,-599.59,0.00010952,2]
[352355395,1739055046038,-793.69,0.00010952,2]
[352355397,1739055046047,-608.87,0.00010952,2]
[352355399,1739055046056,-428.86427346,0.00010952,2]
[352355401,1739055046066,-500.0,0.00010952,2]
[352355403,1739055046075,-500.0,0.00010952,2]
[352355405,1739055046084,-500.0,0.00010952,2]
[352355407,1739055046093,-500.0,0.00010952,2]
[352355409,1739055046102,-720.15,0.00010952,2]
[352355411,1739055046111,-500.0,0.00010952,2]
[352355413,1739055046121,-915.98,0.00010952,2]
[352355415,1739055046131,-531.79,0.00010952,2]
[352355417,1739055046140,-665.77,0.00010952,2]
[352355419,1739055046149,-500.0,0.00010952,2]
[352355421,1739055046159,-500.0,0.00010952,2]
[352355423,1739055046169,-550.61,0.00010952,2]
[352355425,1739055046178,-500.0,0.00010952,2]
[352355427,1739055046187,-500.0,0.00010952,2]
[352355429,1739055046196,-525.34,0.00010952,2]
[352355431,1739055046206,-500.0,0.00010952,2]
[352355433,1739055046215,-500.0,0.00010952,2]
[352355435,1739055046224,-1150.26,0.00010952,2]
[352355437,1739055046234,-500.0,0.00010952,2]
[352355439,1739055046243,-500.0,0.00010952,2]
[352355441,1739055046252,-538.15,0.00010952,2]
[352355443,1739055046261,-500.0,0.00010952,2]
[352355445,1739055046270,-500.0,0.00010952,2]
[352355447,1739055046279,-501.3,0.00010952,2]
[352355449,1739055046289,-500.0,0.00010952,2]
[352355451,1739055046298,-711.36,0.00010952,2]
[352355453,1739055046308,-770.91,0.00010952,2]
[352355455,1739055046317,-500.0,0.00010952,2]
[352355457,1739055046326,-500.0,0.00010952,2]
[352355459,1739055046336,-617.84,0.00010952,2]
[352355461,1739055046345,-500.0,0.00010952,2]
[352355463,1739055046359,-500.0,0.00010952,2]
[352355465,1739055046368,-572.87,0.00010952,2]
[352355467,1739055046377,-606.4,0.00010952,2]
[352355469,1739055046387,-500.0,0.00010952,2]
[352355471,1739055046396,-653.59,0.00010952,2]
[352355473,1739055046405,-500.0,0.00010952,2]
[352355475,1739055046415,-1521.09,0.00010952,2]
[352355477,1739055046424,-2679.31,0.00010952,2]
[352355479,1739055046435,-500.0,0.00010952,2]
[352355481,1739055046445,-500.0,0.00010952,2]
[352355483,1739055046455,-500.0,0.00010952,2]
[352355485,1739055046464,-516.95,0.00010952,2]
[352355487,1739055046473,-500.0,0.00010952,2]
[352355489,1739055046483,-253.2,0.00010953,2]
[352355491,1739055046492,-500.0,0.00010953,2]
[352355493,1739055046501,-500.0,0.00010953,2]
[352355495,1739055046510,-213.3,0.00010953,2]
[352355497,1739055046520,-500.0,0.00010953,2]
[352355499,1739055046530,-500.0,0.00010953,2]
[352355501,1739055046539,-500.0,0.00010953,2]
[352355503,1739055046548,-500.0,0.00010953,2]
[352355505,1739055046557,-500.0,0.00010953,2]
[352355507,1739055046566,-500.0,0.00010953,2]
[352355509,1739055046575,-500.0,0.00010953,2]
[352355511,1739055046584,-500.0,0.00010953,2]
[352355513,1739055046593,-500.0,0.00010953,2]
[352355515,1739055046603,-500.0,0.00010953,2]
[352355517,1739055046612,-500.0,0.00010953,2]
[352355519,1739055046621,-500.0,0.00010953,2]
[352355521,1739055046630,-500.0,0.00010953,2]
[352355523,1739055046640,-500.0,0.00010953,2]
[352355525,1739055046650,-500.0,0.00010953,2]
[352355527,1739055046658,-500.0,0.00010953,2]
[352355529,1739055046667,-500.0,0.00010953,2]
[352355531,1739055046676,-500.0,0.00010953,2]
[352355533,1739055046686,-812.947,0.00010958,2]
[352355535,1739055046695,-315.34,0.00010959,2]
[352355537,1739055046704,-2081.64,0.00010959,2]
[352355539,1739055046713,-150.0,0.00010959,2]
[352355541,1739055046723,-800.0,0.0001096,2]
[352355543,1739055046733,-1800.0,0.0001096,2]
[352355545,1739055046742,-500.0,0.0001097,2]
[352355547,1739055046751,-500.0,0.0001097,2]
[352355549,1739055046761,-1100.0,0.0001097,2]
[352355551,1739055046770,-500.0,0.0001097,2]
[352355553,1739055046779,-211.63753561,0.00010973,2]
[352355555,1739055046788,-162.32591162,0.00010973,2]
[352355557,1739055046798,-501.55684478,0.00010973,2]
[352355559,1739055046807,-500.56523456,0.00010973,2]
[352355561,1739055046816,-500.0,0.00010979,2]
[352355563,1739055046826,-106162.1280509,0.0001098,2]
[352355565,1739055046836,-152.929857,0.0001098,2]
[352355567,1739055046846,-152.929857,0.0001098,2]
[352355569,1739055046856,-717.20412884,0.00010984,2]
[352355571,1739055046867,-796.993867,0.0001099,2]
[352355573,1739055046877,-673.10755957,0.0001099,2]
[352355575,1739055046887,-673.10755957,0.0001099,2]
[352355577,1739055046898,-673.10755957,0.0001099,2]
[352355579,1739055046908,-1011.0,0.00010991,2]
[352355581,1739055046921,-2642.0558817,0.00010991,2]
[352355584,1739055046931,-727.9133552,0.00010991,2]
[352355586,1739055046942,-2051.4649379,0.00010991,2]
[352355587,1739055046952,-6404.9515533,0.00010991,2]
[352355590,1739055046962,-590.6699563,0.00010991,2]
[352355591,1739055046973,-2323.0318763,0.00010992,2]
[352355593,1739055046983,-2004.0078709,0.00010992,2]
[352355595,1739055046994,-1684.9838655,0.00010992,2]
[352355597,1739055047003,-1365.9598602,0.00010992,2]
[352355599,1739055047013,-640.0189863,0.00010992,2]
[352355602,1739055047024,-552.1246175,0.00010992,2]
[352355604,1739055047034,-464.2302487,0.00010992,2]
[352355606,1739055047044,-376.3358798,0.00010992,2]
[352355608,1739055047054,-1803.7538407,0.00010992,2]
[352355609,1739055047064,-1556.0427435,0.00010992,2]
[352355612,1739055047074,-1308.3316462,0.00010992,2]
[352355614,1739055047084,-1060.620549,0.00010992,2]
[352355616,1739055047093,-5631.5639377,0.00010992,2]
[352355618,1739055047103,-4858.176322,0.00010992,2]
[352355620,1739055047113,-4084.7887063,0.00010992,2]
[352355622,1739055047123,-3311.4010907,0.00010992,2]
[352355624,1739055047133,-519.3475075,0.00010992,2]
[352355626,1739055047143,-448.0250587,0.00010992,2]
[352355628,1739055047153,-376.70261,0.00010992,2]
[352355630,1739055047162,-305.3801612,0.00010992,2]
[352355632,1739055047171,-1000.0,0.00010999,2]
[352355634,1739055047181,-1000.0,0.00010999,3]
[352355636,1739055047191,-1000.0,0.00010999,4]
[352355638,1739055047200,-709.8441893,0.00010999,2]
[352355640,1739055047209,-586.62,0.00010999,2]
[352355642,1739055047219,-597.28410534,0.00010999,2]
[352355644,1739055047228,-300.0,0.00010999,2]
[352355646,1739055047237,-300.0,0.00010999,2]
[352355648,1739055047247,-300.0,0.00010999,2]
[352355650,1739055047260,-2419.84306997,0.00011,2]
[352355652,1739055047272,-115720.61575373,0.00011,2]
[352355655,1739055047286,-1330347.68142614,0.00011,2]
[352355688,1739055047603,-343.90218743,0.00010677,2]
[352355690,1739055047615,-500.0,0.00010677,2]
[352355692,1739055047626,-500.0,0.00010814,2]
[352355694,1739055047639,-302.43404137,0.00011,2]
[352355697,1739055047652,-661371.46770695,0.00011,2]
[352355699,1739055047667,-680.31065153,0.00011,2]
[352355709,1739055047746,-769.686283,0.00011,2]
[352355711,1739055047759,-965.79962,0.00011,2]
[352355713,1739055047772,-588.3790666,0.00011,2]
[352355940,1739055408748,500.0,0.0002,120]
[352355955,1739056232300,-315.0,8.22e-05,2]
[352355956,1739056232313,-285.0,8.22e-05,2]
[352355957,1739056232323,-256.02982009,8.22e-05,2]
[352355958,1739056232334,-623.36980975,8.22e-05,2]
[352355959,1739056232422,-420.60037016,8.22e-05,2]
[352355960,1739056232433,-1388.47663971,8.836e-05,2]
[352355961,1739056232445,-787.72537109,8.836e-05,2]
[352355962,1739056232457,-367.35042861,8.836e-05,2]
[352355963,1739056232470,-4193.82486059,8.836e-05,2]
[352355964,1739056232479,-1230.4584,8.973e-05,2]
[352355965,1739056232490,-600.0,9.59e-05,2]
[352355966,1739056232500,-1300.0,9.59e-05,2]
[352355967,1739056232510,-129.27627755,9.59e-05,2]
[352355968,1739056232521,-3081.93913334,9.59e-05,2]
[352355969,1739056232531,-500.0,9.646e-05,2]
[352355970,1739056232540,-1324.12,9.667e-05,2]
[352355971,1739056232550,-156.55,9.688e-05,2]
[352355972,1739056232560,-1000.0,9.689e-05,2]
[352355973,1739056232569,-620.66045325,9.723e-05,2]
[352355974,1739056232581,-1510.42334078,9.723e-05,2]
[352355975,1739056232592,-4036.74748476,9.723e-05,2]
[352355976,1739056232613,-5995.53092008,9.723e-05,2]
[352355977,1739056232701,-1627.52420779,9.723e-05,2]
[352355978,1739056232714,-1537.47542561,9.723e-05,2]
[352355979,1739056232739,-2734.38816773,9.723e-05,2]
[352355980,1739056232748,-165.11,9.736e-05,2]
[352355981,1739056232763,-500.0,9.953e-05,2]
[352355982,1739056232773,-3613.0,0.0001,2]
[352355983,1739056232782,-170.11,0.00010027,2]
[352355984,1739056232792,-348.0,0.00010274,2]
[352355985,1739056232803,-514.32296695,0.00010292,2]
[352355986,1739056232812,-1548.39,0.00010537,2]
[352355987,1739056232822,-438.632532,0.00010621,2]
[352355988,1739056232835,-418.1719,0.00010658,2]
[352355989,1739056232845,-150.0,0.00010676,2]
[352355990,1739056232854,-351.34,0.00010677,2]
[352355992,1739056232864,-551.13,0.00010677,2]
[352355994,1739056232873,-500.0,0.00010677,2]
[352355996,1739056232882,-500.0,0.00010677,2]
[352355998,1739056232892,-500.0,0.00010677,2]
[352356000,1739056232901,-241.82276636,0.00010677,2]
[352356002,1739056232911,-500.0,0.00010677,2]
[352356004,1739056232921,-570.06,0.00010677,2]
[352356006,1739056232931,-386.06184338,0.00010677,2]
[352356007,1739056232940,-500.0,0.00010677,2]
[352356008,1739056232950,-500.0,0.00010677,2]
[352356009,1739056232960,-500.0,0.00010677,2]
[352356010,1739056232970,-500.0,0.00010677,2]
[352356011,1739056232979,-500.0,0.00010677,2]
[352356012,1739056232988,-500.0,0.00010677,2]
[352356013,1739056232997,-500.0,0.00010677,2]
[352356014,1739056233006,-500.0,0.00010677,2]
[352356015,1739056233015,-500.0,0.00010677,2]
[352356016,1739056233024,-500.0,0.00010677,2]
[352356017,1739056233033,-500.0,0.00010677,2]
[352356019,1739056233043,-559.05,0.00010677,2]
[352356021,1739056233052,-500.0,0.00010677,2]
[352356023,1739056233062,-571.91,0.00010677,2]
[352356025,1739056233072,-500.0,0.00010677,2]
[352356026,1739056233082,-500.0,0.00010677,2]
[352356028,1739056233091,-500.0,0.00010677,2]
[352356030,1739056233102,-500.0,0.00010677,2]
[352356032,1739056233111,-500.0,0.00010677,2]
[352356033,1739056233121,-500.0,0.00010677,2]
[352356034,1739056233132,-500.0,0.00010677,2]
[352356035,1739056233142,-500.0,0.00010677,2]
[352356036,1739056233152,-500.0,0.00010677,2]
[352356037,1739056233162,-500.0,0.00010677,2]
[352356038,1739056233174,-500.0,0.00010677,2]
[352356039,1739056233184,-500.0,0.00010677,2]
[352356040,1739056233195,-500.0,0.00010677,2]
[352356041,1739056233206,-500.0,0.00010677,2]
[352356042,1739056233217,-500.0,0.00010677,2]
[352356043,1739056233228,-500.0,0.00010677,2]
[352356044,1739056233238,-500.0,0.00010677,2]
[352356045,1739056233248,-500.0,0.00010677,2]
[352356046,1739056233258,-500.0,0.00010677,2]
[352356047,1739056233268,-500.0,0.00010677,2]
[352356048,1739056233278,-500.0,0.00010677,2]
[352356049,1739056233287,-500.0,0.00010677,2]
[352356050,1739056233297,-500.0,0.00010677,2]
[352356051,1739056233307,-500.0,0.00010677,2]
[352356052,1739056233317,-500.0,0.00010677,2]
[352356053,1739056233326,-500.0,0.00010677,2]
[352356054,1739056233336,-500.0,0.00010677,2]
[352356055,1739056233347,-500.0,0.00010677,2]
[352356056,1739056233360,-500.0,0.00010677,2]
[352356057,1739056233370,-500.0,0.00010677,2]
[352356058,1739056233380,-500.0,0.00010677,2]
[352356059,1739056233391,-534.02,0.00010677,2]
[352356060,1739056233401,-500.0,0.00010677,2]
[352356061,1739056233411,-500.0,0.00010677,2]
[352356062,1739056233421,-500.0,0.00010677,2]
[352356063,1739056233431,-500.0,0.00010677,2]
[352356064,1739056233441,-500.0,0.00010677,2]
[352356065,1739056233451,-500.0,0.00010677,2]
[352356066,1739056233461,-500.0,0.00010677,2]
[352356067,1739056233471,-500.0,0.00010677,2]
[352356068,1739056233480,-500.0,0.00010677,2]
[352356069,1739056233490,-500.0,0.00010677,2]
[352356070,1739056233501,-500.0,0.00010677,2]
[352356071,1739056233510,-500.0,0.00010677,2]
[352356072,1739056233520,-530.23,0.00010677,2]
[352356073,1739056233530,-568.95,0.00010677,2]
[352356074,1739056233539,-294.29683749,0.00010767,2]
[352356075,1739056233549,-1008.46448793,0.0001078,2]
[352356076,1739056233558,-1129.41598443,0.0001078,2]
[352356077,1739056233569,-263.61696,0.0001078,2]
[352356078,1739056233578,-152.0,0.00010792,3]
[352356079,1739056233587,-500.0,0.00010814,2]
[352356080,1739056233597,-500.0,0.00010814,2]
[352356081,1739056233607,-500.0,0.00010814,2]
[352356082,1739056233616,-395.92,0.00010814,2]
[352356083,1739056233626,-500.0,0.00010814,2]
[352356084,1739056233636,-500.0,0.00010814,2]
[352356085,1739056233645,-483.50984216,0.00010814,2]
[352356086,1739056233654,-188.99,0.00010814,2]
[352356087,1739056233664,-266.21,0.00010814,2]
[352356088,1739056233673,-500.0,0.00010814,2]
[352356089,1739056233683,-500.0,0.00010814,2]
[352356090,1739056233693,-500.0,0.00010814,2]
[352356091,1739056233702,-500.0,0.00010814,2]
[352356092,1739056233712,-500.0,0.00010814,2]
[352356093,1739056233722,-500.0,0.00010814,2]
[352356094,1739056233732,-500.0,0.00010814,2]
[352356095,1739056233742,-500.0,0.00010814,2]
[352356096,1739056233753,-500.0,0.00010814,2]
[352356097,1739056233765,-344.96150627,0.00010814,2]
[352356098,1739056233775,-500.0,0.00010814,2]
[352356099,1739056233784,-500.0,0.00010814,2]
[352356100,1739056233795,-500.0,0.00010814,2]
[352356101,1739056233804,-500.0,0.00010814,2]
[352356102,1739056233814,-638.0,0.00010846,2]
[352356103,1739056233824,-568.0,0.00010846,2]
[352356104,1739056233834,-150.0,0.00010846,2]
[352356105,1739056233844,-387.282,0.00010846,2]
[352356106,1739056233854,-3910.0,0.00010846,2]
[352356107,1739056233863,-1007.0,0.00010846,2]
[352356108,1739056233873,-150.0,0.00010846,2]
[352356109,1739056233882,-607.294,0.00010846,2]
[352356110,1739056233891,-500.0,0.00010863,2]
[352356111,1739056233902,-500.0,0.00010863,2]
[352356112,1739056233911,-500.0,0.00010863,2]
[352356113,1739056233921,-500.0,0.00010863,2]
[352356114,1739056233931,-500.0,0.00010863,2]
[352356115,1739056233940,-500.0,0.00010863,2]
[352356116,1739056233950,-500.0,0.00010863,2]
[352356117,1739056233959,-500.0,0.00010863,2]
[352356118,1739056233969,-500.0,0.00010863,2]
[352356119,1739056233978,-500.0,0.00010863,2]
[352356120,1739056233988,-500.0,0.00010863,2]
[352356121,1739056233997,-500.0,0.00010863,2]
[352356122,1739056234007,-417.50100134,0.00010863,2]
[352356123,1739056234016,-500.0,0.00010863,2]
[352356124,1739056234025,-500.0,0.00010863,2]
[352356125,1739056234034,-500.0,0.00010863,2]
[352356126,1739056234043,-500.0,0.00010863,2]
[352356127,1739056234053,-500.0,0.00010863,2]
[352356128,1739056234062,-500.0,0.00010863,2]
[352356129,1739056234071,-500.0,0.00010863,2]
[352356130,1739056234080,-500.0,0.00010863,2]
[352356131,1739056234090,-500.0,0.00010863,2]
[352356132,1739056234099,-500.0,0.00010863,2]
[352356133,1739056234108,-500.0,0.00010863,2]
[352356134,1739056234117,-500.0,0.00010863,2]
[352356135,1739056234127,-500.0,0.00010863,2]
[352356136,1739056234137,-500.0,0.00010863,2]
[352356137,1739056234146,-500.0,0.00010863,2]
[352356138,1739056234155,-500.0,0.00010863,2]
[352356139,1739056234164,-500.0,0.00010863,2]
[352356140,1739056234174,-500.0,0.00010863,2]
[352356141,1739056234182,-500.0,0.00010863,2]
[352356142,1739056234192,-500.0,0.00010863,2]
[352356143,1739056234201,-500.0,0.00010863,2]
[352356144,1739056234211,-500.0,0.00010863,2]
[352356145,1739056234220,-500.0,0.00010863,2]
[352356146,1739056234230,-500.0,0.00010863,2]
[352356147,1739056234239,-500.0,0.00010863,2]
[352356148,1739056234248,-500.0,0.00010863,2]
[352356149,1739056234256,-500.0,0.00010863,2]
[352356150,1739056234265,-500.0,0.00010863,2]
[352356151,1739056234274,-500.0,0.00010863,2]
[352356152,1739056234283,-500.0,0.00010863,2]
[352356153,1739056234292,-500.0,0.00010863,2]
[352356154,1739056234301,-500.0,0.00010863,2]
[352356155,1739056234310,-500.0,0.00010863,2]
[352356156,1739056234320,-500.0,0.00010863,2]
[352356157,1739056234330,-500.0,0.00010863,2]
[352356158,1739056234339,-500.0,0.00010863,2]
[352356159,1739056234349,-500.0,0.00010863,2]
[352356160,1739056234359,-500.0,0.00010863,2]
[352356161,1739056234368,-500.0,0.00010863,2]
[352356162,1739056234377,-500.0,0.00010863,2]
[352356163,1739056234387,-500.0,0.00010863,2]
[352356164,1739056234396,-500.0,0.00010863,2]
[352356165,1739056234406,-500.0,0.00010863,2]
[352356166,1739056234415,-571.21,0.00010863,2]
[352356167,1739056234424,-500.0,0.00010863,2]
[352356168,1739056234433,-500.0,0.00010863,2]
[352356169,1739056234442,-500.0,0.00010863,2]
[352356170,1739056234452,-500.0,0.00010863,2]
[352356171,1739056234462,-500.0,0.00010863,2]
[352356172,1739056234471,-500.0,0.00010863,2]
[352356173,1739056234480,-500.0,0.00010863,2]
[352356174,1739056234489,-500.0,0.00010863,2]
[352356175,1739056234499,-505.71,0.00010863,2]
[352356176,1739056234508,-501.00017509,0.00010863,2]
[352356177,1739056234517,-500.0,0.00010863,2]
[352356178,1739056234527,-500.0,0.00010863,2]
[352356179,1739056234537,-500.0,0.00010863,2]
[352356180,1739056234546,-500.0,0.00010863,2]
[352356181,1739056234555,-500.0,0.00010863,2]
[352356182,1739056234565,-500.0,0.00010863,2]
[352356183,1739056234575,-500.0,0.00010863,2]
[352356184,1739056234584,-500.0,0.00010863,2]
[352356185,1739056234594,-500.0,0.00010863,2]
[352356186,1739056234603,-500.0,0.00010863,2]
[352356187,1739056234612,-500.0,0.00010863,2]
[352356188,1739056234621,-500.0,0.00010863,2]
[352356189,1739056234630,-500.0,0.00010863,2]
[352356190,1739056234639,-500.0,0.00010863,2]
[352356191,1739056234648,-500.0,0.00010863,2]
[352356192,1739056234657,-500.0,0.00010863,2]
[352356193,1739056234666,-500.0,0.00010863,2]
[352356194,1739056234675,-500.0,0.00010863,2]
[352356195,1739056234684,-500.0,0.00010863,2]
[352356196,1739056234693,-500.0,0.00010863,2]
[352356197,1739056234702,-500.0,0.00010863,2]
[352356198,1739056234711,-500.0,0.00010863,2]
[352356199,1739056234721,-500.0,0.00010863,2]
[352356200,1739056234731,-1025.403,0.00010864,2]
[352356201,1739056234741,-151.622,0.00010864,2]
[352356202,1739056234751,-173.46365037,0.00010899,2]
[352356203,1739056234763,-178.63424483,0.00010899,2]
[352356204,1739056234772,-317.55686448,0.00010899,2]
[352356205,1739056234781,-173.46365036,0.00010899,2]
[352356206,1739056234790,-173.46365036,0.000109,2]
[352356207,1739056234800,-173.46365036,0.000109,2]
[352356208,1739056234809,-6068.3066714,0.000109,2]
[352356209,1739056234818,-746.0,0.000109,2]
[352356210,1739056234828,-207.56776491,0.000109,2]
[352356211,1739056234837,-231.0,0.000109,2]
[352356212,1739056234847,-1000.0,0.000109,2]
[352356213,1739056234856,-908.56769792,0.000109,2]
[352356214,1739056234865,-1000.0,0.00010901,2]
[352356215,1739056234874,-500.0,0.00010948,2]
[352356216,1739056234883,-629.39,0.00010948,2]
[352356217,1739056234892,-155.177374,0.00010948,2]
[352356218,1739056234902,-500.0,0.00010948,2]
[352356219,1739056234913,-162.09862424,0.00010948,2]
[352356220,1739056234924,-183.2104776,0.00010948,2]
[352356221,1739056234933,-461.66030202,0.00010948,2]
[352356222,1739056234942,-500.0,0.00010948,2]
[352356223,1739056234951,-500.0,0.00010948,2]
[352356224,1739056234960,-500.0,0.00010948,2]
[352356225,1739056234971,-500.0,0.00010948,2]
[352356226,1739056234980,-283.517037,0.00010948,2]
[352356227,1739056234989,-500.0,0.00010948,2]
[352356228,1739056234999,-500.0,0.00010948,2]
[352356229,1739056235007,-330.283995,0.00010948,2]
[352356230,1739056235017,-500.0,0.00010948,2]
[352356231,1739056235028,-500.0,0.00010948,2]
[352356232,1739056235037,-500.0,0.00010948,2]
[352356233,1739056235046,-669.65,0.00010948,2]
[352356234,1739056235055,-161.660854,0.00010948,2]
[352356235,1739056235065,-515.07,0.00010948,2]
[352356236,1739056235075,-246.46,0.00010948,2]
[352356237,1739056235085,-500.0,0.00010948,2]
[352356238,1739056235094,-500.0,0.00010948,2]
[352356239,1739056235103,-677.54,0.00010948,2]
[352356240,1739056235113,-549.15,0.00010948,2]
[352356241,1739056235122,-746.04,0.00010948,2]
[352356242,1739056235132,-624.26,0.00010948,2]
[352356243,1739056235142,-500.0,0.00010948,2]
[352356244,1739056235151,-500.0,0.00010948,2]
[352356245,1739056235162,-798.04,0.00010948,2]
[352356246,1739056235172,-500.0,0.00010948,2]
[352356247,1739056235181,-500.0,0.00010948,2]
[352356248,1739056235190,-500.0,0.00010948,2]
[352356249,1739056235199,-636.56,0.00010948,2]
[352356250,1739056235208,-500.0,0.00010948,2]
[352356251,1739056235217,-608.25,0.00010948,2]
[352356252,1739056235226,-681.55,0.00010948,2]
[352356253,1739056235236,-565.07,0.00010948,2]
[352356254,1739056235245,-500.0,0.00010948,2]
[352356255,1739056235254,-500.0,0.00010948,2]
[352356256,1739056235263,-500.0,0.00010948,2]
[352356257,1739056235272,-834.8,0.00010948,2]
[352356258,1739056235281,-564.62,0.00010948,2]
[352356259,1739056235290,-500.0,0.00010948,2]
[352356260,1739056235299,-583.46,0.00010948,2]
[352356261,1739056235308,-515.5,0.00010948,2]
[352356262,1739056235317,-500.0,0.00010948,2]